Workbook

Sheet Help
A1: Sales Revenue Template
A2: https://excelgraduate.com/calculate-total-revenue-in-excel/
A3: About This Template
B4: This spreadsheet lets you calculate total revenue and net income from your sales data. You can set up quantity, unit price, markup, & shipping cost to analyze your monthly sales. It also generates some charts and graphs to help you understand how your sales performs over the month.
B6: Note: This spreadsheet is not financial advice. The results may not be accurate or relevant to your specific situation. Please seek professional advice from a qualified financial advisor or accountant before making any significant financial decisions. | G6: Excelgraduate © 2023 by Excelgraduate | All Rights Reserved.
A8: Terminology
B9: Product List: A comprehensive list of products or items available for sale, usually accompanied by their respective product codes or names.
B10: Ordered Quantity: The number of units of a product that a customer has ordered or requested.
B11: Unit Price: The price of a single unit of a product, often referred to as the "base price."
B12: Markup: The percentage added to the unit price to determine the selling price, which represents the desired profit margin.
B13: Total Revenue: The total amount of money generated from the sale of a product, calculated as the product of the ordered quantity, the unit price, and the markup.
B14: Charged Shipping Cost: The amount charged to the customer to cover the cost of shipping and handling the ordered products.
B15: Actual Shipping Cost: The amount that the seller incurs to ship the products, including packaging, postage, and other expenses.
B16: Profit Per Unit: The amount of profit generated by selling one unit of a product.
B17: Returned Quantity: The number of units of a product that have been returned by customers due to defects or other reasons.
B18: Net Profit: The total profit generated from the sale of a product.
A20: Formulas
B21: Total Revenue = Ordered Quantity*Unit Price*(1 + Markup)
B22: Profit Per Unit = Unit Price*Markup + (Charged Shipping Cost - Actual Shipping Cost)
B23: Net Profit = (Ordered Quantity - Returned Quantity)*Profit Per Unit + Returned Quantity*(Charged Shipping Cost - Actual Shipping Cost)

Sheet Sales Report
A1: Sales Revenue Template
F2: Help: | G2: https://excelgraduate.com/calculate-total-revenue-in-excel/
A3: Date: | C3: January 2023
A4: Company Name: | C4: Zenith Corporation
A6: Product List | B6: Ordered Quantity | C6: Unit Price | D6: Markup | E6: Total Revenue | F6: Charged Shipping Cost | G6: Actual Shipping Cost | H6: Profit Per Unit | I6: Returned Quantity | J6: Net Profit | N6: Excelgraduate
A7: A | B7: 110 | C7: $210.00 | D7: 11% | E7: =IFERROR(Table1[[#This Row],[Ordered Quantity]]*Table1[[#This Row],[Unit Price]]*(1+Table1[[#This Row],[Markup]]),0) -> $25,641.00 | F7: $25.00 | G7: $15.00 | H7: =IFERROR(Table1[[#This Row],[Unit Price]]*Table1[[#This Row],[Markup]]+Table1[[#This Row],[Charged Shipping Cost]]-Table1[[#This Row],[Actual Shipping Cost]],0) -> $33.10 | I7: 2 | J7: =IFERROR(((Table1[[#This Row],[Ordered Quantity]]-Table1[[#This Row],[Returned Quantity]])*Table1[[#This Row],[Profit Per Unit]])+(Table1[[#This Row],[Returned Quantity]]*(Table1[[#This Row],[Charged Shipping Cost]]-Table1[[#This Row],[Actual Shipping Cost]])),0) -> $3,594.80 | N7: © 2023 by Excelgraduate | All Rights Reserved.
A8: B | B8: 120 | C8: $370.00 | D8: 11% | E8: =IFERROR(Table1[[#This Row],[Ordered Quantity]]*Table1[[#This Row],[Unit Price]]*(1+Table1[[#This Row],[Markup]]),0) -> $49,284.00 | F8: $25.00 | G8: $15.00 | H8: =IFERROR(Table1[[#This Row],[Unit Price]]*Table1[[#This Row],[Markup]]+Table1[[#This Row],[Charged Shipping Cost]]-Table1[[#This Row],[Actual Shipping Cost]],0) -> $50.70 | I8: 2 | J8: =IFERROR(((Table1[[#This Row],[Ordered Quantity]]-Table1[[#This Row],[Returned Quantity]])*Table1[[#This Row],[Profit Per Unit]])+(Table1[[#This Row],[Returned Quantity]]*(Table1[[#This Row],[Charged Shipping Cost]]-Table1[[#This Row],[Actual Shipping Cost]])),0) -> $6,002.60
A9: C | B9: 140 | C9: $210.00 | D9: 20% | E9: =IFERROR(Table1[[#This Row],[Ordered Quantity]]*Table1[[#This Row],[Unit Price]]*(1+Table1[[#This Row],[Markup]]),0) -> $35,280.00 | F9: $25.00 | G9: $15.00 | H9: =IFERROR(Table1[[#This Row],[Unit Price]]*Table1[[#This Row],[Markup]]+Table1[[#This Row],[Charged Shipping Cost]]-Table1[[#This Row],[Actual Shipping Cost]],0) -> $52.00 | I9: 9 | J9: =IFERROR(((Table1[[#This Row],[Ordered Quantity]]-Table1[[#This Row],[Returned Quantity]])*Table1[[#This Row],[Profit Per Unit]])+(Table1[[#This Row],[Returned Quantity]]*(Table1[[#This Row],[Charged Shipping Cost]]-Table1[[#This Row],[Actual Shipping Cost]])),0) -> $6,902.00
A10: D | B10: 180 | C10: $400.00 | D10: 7% | E10: =IFERROR(Table1[[#This Row],[Ordered Quantity]]*Table1[[#This Row],[Unit Price]]*(1+Table1[[#This Row],[Markup]]),0) -> $77,040.00 | F10: $25.00 | G10: $15.00 | H10: =IFERROR(Table1[[#This Row],[Unit Price]]*Table1[[#This Row],[Markup]]+Table1[[#This Row],[Charged Shipping Cost]]-Table1[[#This Row],[Actual Shipping Cost]],0) -> $38.00 | I10: 8 | J10: =IFERROR(((Table1[[#This Row],[Ordered Quantity]]-Table1[[#This Row],[Returned Quantity]])*Table1[[#This Row],[Profit Per Unit]])+(Table1[[#This Row],[Returned Quantity]]*(Table1[[#This Row],[Charged Shipping Cost]]-Table1[[#This Row],[Actual Shipping Cost]])),0) -> $6,616.00
A11: E | B11: 60 | C11: $240.00 | D11: 17% | E11: =IFERROR(Table1[[#This Row],[Ordered Quantity]]*Table1[[#This Row],[Unit Price]]*(1+Table1[[#This Row],[Markup]]),0) -> $16,848.00 | F11: $25.00 | G11: $15.00 | H11: =IFERROR(Table1[[#This Row],[Unit Price]]*Table1[[#This Row],[Markup]]+Table1[[#This Row],[Charged Shipping Cost]]-Table1[[#This Row],[Actual Shipping Cost]],0) -> $50.80 | I11: 4 | J11: =IFERROR(((Table1[[#This Row],[Ordered Quantity]]-Table1[[#This Row],[Returned Quantity]])*Table1[[#This Row],[Profit Per Unit]])+(Table1[[#This Row],[Returned Quantity]]*(Table1[[#This Row],[Charged Shipping Cost]]-Table1[[#This Row],[Actual Shipping Cost]])),0) -> $2,884.80
A12: F | B12: 120 | C12: $400.00 | D12: 9% | E12: =IFERROR(Table1[[#This Row],[Ordered Quantity]]*Table1[[#This Row],[Unit Price]]*(1+Table1[[#This Row],[Markup]]),0) -> $52,320.00 | F12: $25.00 | G12: $15.00 | H12: =IFERROR(Table1[[#This Row],[Unit Price]]*Table1[[#This Row],[Markup]]+Table1[[#This Row],[Charged Shipping Cost]]-Table1[[#This Row],[Actual Shipping Cost]],0) -> $46.00 | I12: 6 | J12: =IFERROR(((Table1[[#This Row],[Ordered Quantity]]-Table1[[#This Row],[Returned Quantity]])*Table1[[#This Row],[Profit Per Unit]])+(Table1[[#This Row],[Returned Quantity]]*(Table1[[#This Row],[Charged Shipping Cost]]-Table1[[#This Row],[Actual Shipping Cost]])),0) -> $5,304.00
A13: G | B13: 170 | C13: $210.00 | D13: 19% | E13: =IFERROR(Table1[[#This Row],[Ordered Quantity]]*Table1[[#This Row],[Unit Price]]*(1+Table1[[#This Row],[Markup]]),0) -> $42,483.00 | F13: $25.00 | G13: $15.00 | H13: =IFERROR(Table1[[#This Row],[Unit Price]]*Table1[[#This Row],[Markup]]+Table1[[#This Row],[Charged Shipping Cost]]-Table1[[#This Row],[Actual Shipping Cost]],0) -> $49.90 | I13: 7 | J13: =IFERROR(((Table1[[#This Row],[Ordered Quantity]]-Table1[[#This Row],[Returned Quantity]])*Table1[[#This Row],[Profit Per Unit]])+(Table1[[#This Row],[Returned Quantity]]*(Table1[[#This Row],[Charged Shipping Cost]]-Table1[[#This Row],[Actual Shipping Cost]])),0) -> $8,203.70
A14: H | B14: 180 | C14: $300.00 | D14: 12% | E14: =IFERROR(Table1[[#This Row],[Ordered Quantity]]*Table1[[#This Row],[Unit Price]]*(1+Table1[[#This Row],[Markup]]),0) -> $60,480.00 | F14: $25.00 | G14: $15.00 | H14: =IFERROR(Table1[[#This Row],[Unit Price]]*Table1[[#This Row],[Markup]]+Table1[[#This Row],[Charged Shipping Cost]]-Table1[[#This Row],[Actual Shipping Cost]],0) -> $46.00 | I14: 5 | J14: =IFERROR(((Table1[[#This Row],[Ordered Quantity]]-Table1[[#This Row],[Returned Quantity]])*Table1[[#This Row],[Profit Per Unit]])+(Table1[[#This Row],[Returned Quantity]]*(Table1[[#This Row],[Charged Shipping Cost]]-Table1[[#This Row],[Actual Shipping Cost]])),0) -> $8,100.00
A16: Total Revenue by Product
A17: Product List | B17: A | C17: B | D17: C | E17: D | F17: E | G17: F | H17: G | I17: H | J17: All
A18: Total Revenue | B18: =E7 -> $25,641.00 | C18: =E8 -> $49,284.00 | D18: =E9 -> $35,280.00 | E18: =E10 -> $77,040.00 | F18: =E11 -> $16,848.00 | G18: =E12 -> $52,320.00 | H18: =E13 -> $42,483.00 | I18: =E14 -> $60,480.00 | J18: =SUM(B18:I18) -> $359,376.00
A19: % of Total Revenue | B19: =B18/J18 -> 7% | C19: =C18/J18 -> 14% | D19: =D18/J18 -> 10% | E19: =E18/J18 -> 21% | F19: =F18/J18 -> 5% | G19: =G18/J18 -> 15% | H19: =H18/J18 -> 12% | I19: =I18/J18 -> 17% | J19: =SUM(B19:I19) -> 100%
A21: Net Profit by Product
A22: Product List | B22: A | C22: B | D22: C | E22: D | F22: E | G22: F | H22: G | I22: H | J22: All
A23: Net Profit | B23: =J7 -> $3,594.80 | C23: =J8 -> $6,002.60 | D23: =J9 -> $6,902.00 | E23: =J10 -> $6,616.00 | F23: =J11 -> $2,884.80 | G23: =J12 -> $5,304.00 | H23: =J13 -> $8,203.70 | I23: =J14 -> $8,100.00 | J23: =SUM(B23:I23) -> $47,607.90
A24: % of Net Profit | B24: =B23/J23 -> 8% | C24: =C23/J23 -> 13% | D24: =D23/J23 -> 14% | E24: =E23/J23 -> 14% | F24: =F23/J23 -> 6% | G24: =G23/J23 -> 11% | H24: =H23/J23 -> 17% | I24: =I23/J23 -> 17% | J24: =SUM(B24:I24) -> 100%
